fUST/lending_fUST_20260423
["ID","MTS","AMOUNT","RATE_DAILY","PERIOD"]
[420995400,1776879038844,-134.00796388,0.00016237,2]
[420995401,1776879038857,-559.98659499,0.00016237,2]
[420995402,1776879038866,-693.99455887,0.00016237,2]
[420995403,1776879038875,-693.99455887,0.00016237,2]
[420995404,1776879038884,-693.99455887,0.00016237,2]
[420995405,1776879038893,-693.99455887,0.00016237,2]
[420995406,1776879038902,-403.76383164,0.00016237,2]
[420995407,1776879038911,-500.0,0.00016237,2]
[420995409,1776879038921,-326.61320146,0.00016237,2]
[420995410,1776879038930,-499.88948869,0.00016237,2]
[420995411,1776879038939,-26681.19816832,0.00016238,2]
[420995412,1776879038951,-10209.98579081,0.00016238,2]
[420995413,1776879038963,-836.73170697,0.00016238,2]
[420995414,1776879038974,-320725.13511631,0.00016238,2]
[420995429,1776879040752,-2357.72519592,0.00016238,2]
[420995430,1776879040862,-287.41114439,0.00016238,2]
[420995483,1776879046644,-5000.0,0.00016076,2]
[420995484,1776879046654,-1861.43968879,0.00016238,2]
[420995485,1776879046665,-105982.92209153,0.00016238,2]
[420995486,1776879138803,-523.55724395,0.00015914,2]
[420995487,1776879138827,-185.77075605,0.00015914,2]
[420995488,1776879168005,-523.55724395,0.00016075,2]
[420995496,1776879672314,2187.89,0.0002465,120]
[420995515,1776880232473,-1051.43828814,0.00012897,10]
[420995517,1776880232484,-3948.56171186,0.00012897,10]
[420995519,1776880232494,-183.90021105,0.00013227,2]
[420995521,1776880232503,-561.34777649,0.00013588,2]
[420995523,1776880232512,-1000.0,0.00013699,2]
[420995525,1776880232523,-567.463,0.00015816,2]
[420995527,1776880232532,-568.43146687,0.00015861,2]
[420995529,1776880232541,-557.11748231,0.000159,2]
[420995531,1776880232551,-500.0,0.00016037,2]
[420995533,1776880232560,-600.15292632,0.00016037,2]
[420995535,1776880232570,-500.0,0.00016037,2]
[420995537,1776880232579,-528.75551662,0.00016037,2]
[420995539,1776880232589,-729.43388266,0.00016037,2]
[420995541,1776880232598,-729.43388266,0.00016037,2]
[420995543,1776880232608,-729.43388266,0.00016037,2]
[420995545,1776880232618,-729.43388266,0.00016037,2]
[420995547,1776880232627,-729.43388266,0.00016037,2]
[420995549,1776880232636,-729.43388266,0.00016037,2]
[420995551,1776880232646,-729.43388266,0.00016037,2]
[420995553,1776880232655,-729.43388266,0.00016037,2]
[420995555,1776880232665,-729.43388266,0.00016037,2]
[420995557,1776880232674,-729.43388266,0.00016037,2]
[420995558,1776880232684,-729.43388266,0.00016037,2]
[420995560,1776880232694,-729.43388266,0.00016037,2]
[420995562,1776880232703,-729.43388266,0.00016037,2]
[420995565,1776880232713,-729.43388266,0.00016037,2]
[420995567,1776880232723,-729.43388266,0.00016037,2]
[420995569,1776880232732,-217.92341978,0.00016037,2]
[420995571,1776880232742,-500.0,0.00016037,2]
[420995573,1776880232751,-500.0,0.00016037,2]
[420995575,1776880232761,-321.05902551,0.00016037,2]
[420995577,1776880232770,-500.0,0.00016037,2]
[420995578,1776880232780,-729.43388266,0.00016037,2]
[420995580,1776880232794,-500.0,0.00016037,2]
[420995582,1776880232804,-500.0,0.00016037,2]
[420995584,1776880232813,-246.54020245,0.00016037,2]
[420995587,1776880232823,-500.0,0.00016037,2]
[420995589,1776880232833,-500.0,0.00016037,2]
[420995591,1776880232842,-500.0,0.00016037,2]
[420995593,1776880232851,-729.43388266,0.00016037,2]
[420995595,1776880232860,-500.0,0.00016037,2]
[420995597,1776880232869,-500.0,0.00016037,2]
[420995598,1776880232879,-729.43388266,0.00016037,2]
[420995600,1776880232888,-500.0,0.00016037,2]
[420995601,1776880232898,-500.0,0.00016037,2]
[420995602,1776880232906,-500.0,0.00016037,2]
[420995603,1776880232916,-500.0,0.00016037,2]
[420995604,1776880232924,-500.0,0.00016037,2]
[420995605,1776880232934,-500.0,0.00016037,2]
[420995606,1776880232943,-500.0,0.00016037,2]
[420995607,1776880232952,-500.0,0.00016037,2]
[420995608,1776880232961,-608.5303272,0.00016037,2]
[420995609,1776880232971,-500.0,0.00016037,2]
[420995610,1776880232980,-500.0,0.00016037,2]
[420995611,1776880232990,-500.0,0.00016037,2]
[420995612,1776880232999,-500.0,0.00016037,2]
[420995613,1776880233010,-384.32075581,0.00016037,2]
[420995614,1776880233019,-500.0,0.00016037,2]
[420995615,1776880233028,-765.90557678,0.00016037,2]
[420995616,1776880233038,-765.90557678,0.00016037,2]
[420995617,1776880233047,-765.90557678,0.00016037,2]
[420995618,1776880233056,-765.90557678,0.00016037,2]
[420995619,1776880233066,-765.90557678,0.00016037,2]
[420995620,1776880233075,-765.90557678,0.00016037,2]
[420995621,1776880233085,-765.90557678,0.00016037,2]
[420995622,1776880233094,-765.90557678,0.00016037,2]
[420995623,1776880233103,-59128.45956565,0.00016038,2]
[420995651,1776880233617,-2400.0,0.00016038,2]
[420995716,1776880238742,-3440.18165421,0.00015937,2]
[420995717,1776880238752,-1745.83745016,0.00016038,2]
[420995718,1776880238763,-7288.89329774,0.00016038,2]
[420995719,1776880238901,-1247818.56101314,0.00016038,2]
[420995720,1776880238911,-500.0,0.00016073,2]
[420995721,1776880238921,-151.0,0.000161,2]
[420995722,1776880238930,-151.0,0.000161,2]
[420995723,1776880238940,-151.0,0.000161,2]
[420995724,1776880238949,-151.0,0.000161,2]
[420995725,1776880238958,-151.0,0.000161,2]
[420995726,1776880238967,-500.0,0.00016238,2]
[420995727,1776880238977,-287.055855,0.00016267,2]
[420995728,1776880238986,-500.0,0.00016336,2]
[420995729,1776880238995,-12863.86752107,0.00016438,2]
[420995730,1776880239007,-5382.06751572,0.00016438,2]
[420995731,1776880239018,-1754.06496321,0.00016438,2]
[420995732,1776880239028,-20000.0,0.00016438,2]
[420995733,1776880239037,-1712.25519872,0.00016438,30]
[420995734,1776880239047,-1000.0,0.00016621,2]
[420995735,1776880239056,-537.6845,0.00016933,2]
[420995736,1776880239065,-557.5788265,0.00016988,2]
[420995737,1776880239075,-337.75298682,0.00017,7]
[420995738,1776880239084,-1712.25519872,0.00017,30]
[420995739,1776880239093,-578.20924308,0.00017043,2]
[420995740,1776880239102,-599.60298507,0.00017098,2]
[420995741,1776880239111,-621.78829552,0.00017153,2]
[420995742,1776880239120,-1453.88706448,0.00017168,2]
[420995758,1776880241108,-46.11293552,0.00017168,2]
[420995760,1776880241118,-151.0,0.00017205,2]
[420995762,1776880241127,-1433.88706448,0.00017206,2]
[420995766,1776880241162,-2006.29458966,0.00017206,2]
[420995767,1776880241171,-644.79446246,0.00017208,2]
[420995769,1776880241181,-668.65185757,0.00017263,2]
[420995770,1776880241191,-693.3919763,0.00017318,2]
[420995772,1776880241200,-369.43638908,0.00017373,2]
[420995774,1776880241210,-887.08344204,0.00017575,2]
[420995775,1776880241219,-209.37273692,0.00017575,2]
[420995777,1776880241228,-1000.0,0.00017716,2]
[420995778,1776880241238,-337.75298682,0.00017982,7]
[420995779,1776880241248,-3544.78543438,0.00017989,2]
[420995781,1776880241257,-836.65345672,0.00017989,2]
[420995782,1776880241265,-1443.53614364,0.000181,2]
[420995796,1776880244486,-1032.68332836,0.000181,2]
[420995797,1776880244495,-1084.64864496,0.000181,2]
[420995798,1776880244508,-3232.90007557,0.000181,2]
[420995803,1776880247060,-1443.25030795,0.000181,2]
[420995826,1776880403943,1185.64,0.000246,120]
[420995868,1776880861861,-1441.0,7.6e-05,2]
[420996013,1776881438005,-5000.0,7.375e-05,2]
[420996014,1776881438016,-150.0,7.506e-05,2]
[420996015,1776881438027,-1200.0,7.599e-05,2]
[420996016,1776881438037,-3907.51438129,7.6e-05,2]
[420996017,1776881438048,-300.0,7.751e-05,2]
[420996018,1776881438058,-300.0,7.751e-05,2]
[420996019,1776881438068,-151.0,8.045e-05,2]
[420996020,1776881438079,-588.0,8.359e-05,2]
[420996021,1776881438089,-177.0,9.506e-05,2]
[420996022,1776881438099,-250.0,0.00010429,2]
[420996023,1776881438109,-171.40860523,0.00011506,2]
[420996024,1776881438119,-300.0,0.00013698,2]
[420996025,1776881438128,-1000.0,0.00013699,2]
[420996026,1776881438138,-222.4653658,0.00014553,2]
[420996027,1776881438147,-420.0,0.00015012,2]
[420996028,1776881438156,-453.97,0.00015717,2]
[420996029,1776881438165,-588.81473262,0.00015836,2]
[420996030,1776881438174,-500.0,0.00015836,2]
[420996031,1776881438184,-500.58016353,0.00015836,2]
[420996032,1776881438194,-588.81473262,0.00015836,2]
[420996033,1776881438203,-588.81473262,0.00015836,2]
[420996034,1776881438212,-588.81473262,0.00015836,2]
[420996035,1776881438222,-588.81473262,0.00015836,2]
[420996036,1776881438231,-588.81473262,0.00015836,2]
[420996037,1776881438241,-500.0,0.00015836,2]
[420996038,1776881438250,-588.81473262,0.00015836,2]
[420996040,1776881438259,-588.81473262,0.00015836,2]
[420996041,1776881438268,-500.0,0.00015836,2]
[420996042,1776881438277,-588.81473262,0.00015836,2]
[420996043,1776881438286,-316.49050966,0.00015836,2]
[420996045,1776881438295,-500.0,0.00015836,2]
[420996047,1776881438304,-500.0,0.00015836,2]
[420996049,1776881438318,-500.0,0.00015836,2]
[420996051,1776881438327,-500.0,0.00015836,2]
[420996053,1776881438336,-588.81473262,0.00015836,2]
[420996055,1776881438345,-500.0,0.00015836,2]
[420996057,1776881438354,-500.0,0.00015836,2]
[420996059,1776881438363,-588.81473262,0.00015836,2]
[420996061,1776881438372,-500.0,0.00015836,2]
[420996062,1776881438381,-500.0,0.00015836,2]
[420996063,1776881438390,-588.81473262,0.00015836,2]
[420996065,1776881438399,-588.81473262,0.00015836,2]
[420996067,1776881438408,-188.43207558,0.00015836,2]
[420996068,1776881438417,-260.85303272,0.00015836,2]
[420996070,1776881438427,-588.81473262,0.00015836,2]
[420996071,1776881438436,-588.81473262,0.00015836,2]
[420996072,1776881438445,-588.81473262,0.00015836,2]
[420996074,1776881438455,-588.81473262,0.00015836,2]
[420996076,1776881438464,-588.81473262,0.00015836,2]
[420996077,1776881438473,-588.81473262,0.00015836,2]
[420996078,1776881438483,-47234.57107509,0.00015837,2]
[420996079,1776881438496,-473.57376399,0.00015837,2]
[420996099,1776881443205,-819.51562325,0.00015837,2]
[420996133,1776881603356,10000.0,0.000246,120]
[420996134,1776881603790,9000.0,0.000246,120]
[420996143,1776882018550,20000.0,0.0002465,120]
[420996145,1776882035174,5000.0,6e-05,10]
[420996146,1776882058017,5000.0,6e-05,10]
[420996147,1776882128841,61000.0,0.00024658,120]
[420996148,1776882273306,5000.0,6e-05,10]
[420996653,1776882638469,-1289.70641936,4.25e-05,2]
[420996654,1776882638481,-3710.29358064,4.25e-05,2]
[420996655,1776882638491,-150.0,4.282e-05,2]
[420996656,1776882638500,-164.424937,4.336e-05,2]
[420996657,1776882638509,-200.0,5.191e-05,2]
[420996658,1776882638518,-200.0,5.191e-05,2]
[420996659,1776882638528,-200.0,5.191e-05,7]
[420996660,1776882638538,-250.0,5.616e-05,2]
[420996661,1776882638547,-271.88730912,6.282e-05,2]
[420996662,1776882638557,-342.45103974,7.301e-05,2]
[420996663,1776882638567,-342.45103974,7.338e-05,2]
[420996664,1776882638576,-300.0,7.373e-05,2]
[420996665,1776882638586,-1200.0,7.373e-05,2]
[420996666,1776882638596,-690.89371095,7.375e-05,2]
[420996667,1776882638605,-342.45103974,7.375e-05,2]
[420996668,1776882638615,-690.89371095,7.506e-05,2]
[420996669,1776882638625,-342.45103974,7.506e-05,2]
[420996670,1776882638634,-213.60390477,7.599e-05,2]
[420996671,1776882638646,-477.28980618,7.599e-05,2]
[420996672,1776882638655,-690.89371095,7.6e-05,2]
[420996673,1776882638665,-420.0,8.11e-05,2]
[420996674,1776882638674,-480.0,8.11e-05,2]
[420996675,1776882638684,-283.0,8.921e-05,2]
[420996676,1776882638693,-1275.52006862,0.00010959,2]
[420996677,1776882638708,-2000.38884425,0.00010959,2]
[420996678,1776882638730,-12104.46468713,0.00010959,2]
[420996679,1776882638739,-1000.0,0.00013699,2]
[420996680,1776882638748,-262.2188148,0.00015177,2]
[420996681,1776882638758,-4307.97041721,0.00015473,2]
[420996682,1776882638767,-500.0,0.00015535,2]
[420996683,1776882638776,-500.0,0.00015535,2]
[420996684,1776882638786,-500.0,0.00015535,2]
[420996685,1776882638795,-500.0,0.00015535,2]
[420996686,1776882638804,-500.0,0.00015535,2]
[420996687,1776882638816,-500.0,0.00015535,2]
[420996688,1776882638826,-500.0,0.00015535,2]
[420996689,1776882638835,-350.40611447,0.00015535,2]
[420996690,1776882638844,-500.0,0.00015535,2]
[420996691,1776882638854,-500.0,0.00015535,2]
[420996692,1776882638863,-471.54335676,0.00015535,2]
[420996693,1776882638873,-500.0,0.00015535,2]
[420996694,1776882638882,-500.0,0.00015535,2]
[420996695,1776882638892,-500.0,0.00015535,2]
[420996696,1776882638901,-500.0,0.00015535,2]
[420996697,1776882638910,-187.60356395,0.00015535,2]
[420996698,1776882638919,-500.0,0.00015535,2]
[420996699,1776882638929,-500.0,0.00015535,2]
[420996700,1776882638938,-195.65033697,0.00015535,2]
[420996701,1776882638948,-513.22973685,0.00015535,2]
[420996702,1776882638957,-513.22973685,0.00015535,2]
[420996703,1776882638967,-513.22973685,0.00015535,2]
[420996704,1776882638976,-513.22973685,0.00015535,2]
[420996705,1776882638985,-513.22973685,0.00015535,2]
[420996706,1776882638994,-513.22973685,0.00015535,2]
[420996707,1776882639004,-513.22973685,0.00015535,2]
[420996708,1776882639013,-513.22973685,0.00015535,2]
[420996709,1776882639022,-513.22973685,0.00015535,2]
[420996710,1776882639031,-513.22973685,0.00015535,2]
[420996711,1776882639040,-500.0,0.00015535,2]
[420996712,1776882639049,-513.22973685,0.00015535,2]
[420996713,1776882639060,-513.22973685,0.00015535,2]
[420996714,1776882639069,-500.0,0.00015535,2]
[420996715,1776882639078,-500.0,0.00015535,2]
[420996716,1776882639087,-211.90676315,0.00015535,2]
[420996717,1776882639097,-35974.84778716,0.00015536,2]
[420996727,1776882640631,-6981.63,0.00015536,2]
[420996755,1776882643395,-1267.78353468,0.00015536,2]
[420996779,1776882719274,-500.0,0.00013698,2]
[420996780,1776882748476,-231.82,0.00014711,2]
[420996789,1776883169465,500.0,0.0002465,120]
[420997000,1776883839301,-3530.39,0.00012895,10]
[420997012,1776883839407,-1469.61,0.00012895,10]
[420997014,1776883839416,-150.0,0.00013308,2]
[420997016,1776883839426,-200.0,0.00013395,30]
[420997017,1776883839436,-500.0,0.00013698,2]
[420997018,1776883839445,-1000.0,0.00013699,2]
[420997019,1776883839454,-180.3,0.00014336,2]
[420997020,1776883839464,-300.0,0.00014621,2]
[420997021,1776883839473,-7021.77317858,0.00014622,2]
[420997022,1776883839484,-300.0,0.00014622,2]
[420997023,1776883839494,-300.0,0.00014622,2]
[420997024,1776883839503,-300.0,0.00014622,2]
[420997025,1776883839513,-300.0,0.00014622,2]
[420997026,1776883839523,-300.0,0.00014622,2]
[420997027,1776883839532,-300.0,0.00014622,2]
[420997028,1776883839542,-300.0,0.00014622,2]
[420997029,1776883839551,-300.0,0.00014622,2]
[420997030,1776883839560,-300.0,0.00014622,2]
[420997031,1776883839570,-300.0,0.00014622,2]
[420997032,1776883839580,-300.0,0.00014622,2]
[420997033,1776883839590,-300.0,0.00014622,2]
[420997034,1776883839600,-300.0,0.00014622,2]
[420997035,1776883839609,-300.0,0.00014622,2]
[420997036,1776883839618,-300.0,0.00014622,2]
[420997037,1776883839627,-534.33067394,0.00014629,2]
[420997038,1776883839636,-151.0,0.00014841,2]
[420997039,1776883839646,-216.471993,0.00015068,2]
[420997040,1776883839655,-151.5,0.00015099,2]
[420997041,1776883839665,-151.5,0.00015099,2]
[420997042,1776883839674,-300.75627425,0.00015099,2]
[420997043,1776883839683,-254.66716068,0.00015099,2]
[420997044,1776883839693,-271.39706997,0.0001529,2]
[420997045,1776883839702,-241.41973615,0.0001529,2]
[420997046,1776883839711,-520.26158552,0.000153,2]
[420997047,1776883839721,-538.99876338,0.000153,2]
[420997048,1776883839730,-510.49989704,0.000153,2]
[420997049,1776883839739,-177.0,0.00015308,2]
[420997050,1776883839749,-1000.0,0.00015354,2]
[420997051,1776883839759,-1000.0,0.00015354,2]
[420997052,1776883839768,-1000.0,0.00015354,2]
[420997053,1776883839777,-500.0,0.00015355,2]
[420997054,1776883839786,-500.0,0.00015355,2]
[420997055,1776883839795,-500.0,0.00015355,2]
[420997056,1776883839804,-500.0,0.00015355,2]
[420997057,1776883839813,-500.0,0.00015355,2]
[420997058,1776883839822,-500.0,0.00015355,2]
[420997060,1776883839831,-500.0,0.00015355,2]
[420997061,1776883839840,-500.0,0.00015355,2]
[420997062,1776883839849,-627.0722879,0.00015355,2]
[420997063,1776883839859,-500.0,0.00015355,2]
[420997064,1776883839868,-500.0,0.00015355,2]
[420997065,1776883839877,-500.0,0.00015355,2]
[420997066,1776883839887,-567.34000963,0.00015355,2]
[420997067,1776883839896,-500.0,0.00015355,2]
[420997068,1776883839905,-500.0,0.00015355,2]
[420997069,1776883839915,-500.0,0.00015355,2]
[420997070,1776883839924,-204.86613523,0.00015355,2]
[420997071,1776883839933,-500.6397376,0.00015373,2]
[420997072,1776883839943,-500.0,0.00015373,2]
[420997073,1776883839952,-500.0,0.00015373,2]
[420997074,1776883839962,-500.0,0.00015373,2]
[420997075,1776883839971,-500.0,0.00015373,2]
[420997076,1776883839980,-352.666067,0.00015373,2]
[420997077,1776883839990,-500.0,0.00015373,2]
[420997078,1776883839999,-457.469,0.00015373,2]
[420997079,1776883840008,-151.0,0.000154,2]
[420997080,1776883840018,-151.0,0.000154,2]
[420997081,1776883840027,-151.0,0.000155,2]
[420997082,1776883840036,-151.0,0.000155,2]
[420997083,1776883840046,-151.0,0.000155,2]
[420997084,1776883840055,-151.0,0.000155,2]
[420997085,1776883840064,-151.0,0.000155,2]
[420997086,1776883840074,-151.0,0.000155,2]
[420997087,1776883840083,-151.0,0.000155,2]
[420997088,1776883840092,-151.0,0.000155,2]
[420997089,1776883840101,-151.0,0.000155,2]
[420997090,1776883840112,-151.0,0.000155,2]
[420997091,1776883840122,-30210.60388796,0.000155,2]
[420997096,1776883840944,-29789.39611204,0.000155,2]
[420997097,1776883840957,-500.0,0.00015535,2]
[420997098,1776883840966,-500.0,0.00015535,3]
[420997099,1776883840975,-500.0,0.00015535,2]
[420997100,1776883840985,-457.14,0.00015535,2]
[420997101,1776883840994,-151.0,0.00015561,2]
[420997102,1776883841003,-180.4643845,0.00015565,2]
[420997103,1776883841012,-151.4253807,0.00015565,2]
[420997104,1776883841022,-456.0967881,0.00015565,2]
[420997105,1776883841031,-151.9502448,0.00015565,2]
[420997106,1776883841040,-455.7675055,0.00015565,2]
[420997107,1776883841049,-478.3694389,0.00015663,2]
[420997108,1776883841059,-151.0,0.000157,2]
[420997109,1776883841068,-151.0,0.000157,2]
[420997110,1776883841078,-500.0,0.00015709,2]
[420997111,1776883841087,-5000.0,0.00015717,2]
[420997112,1776883841096,-600.0,0.00015809,2]
[420997113,1776883841105,-200.0,0.00015914,2]
[420997114,1776883841115,-200.0,0.00015914,2]
[420997115,1776883841124,-200.0,0.00015914,2]
[420997116,1776883841133,-200.13096774,0.00015914,2]
[420997117,1776883841144,-2580.13624064,0.00015938,2]
[420997118,1776883841153,-657.094678,0.00015983,2]
[420997119,1776883841163,-151.0,0.00016,2]
[420997120,1776883841172,-151.0,0.000161,2]
[420997121,1776883841182,-974.15120232,0.000161,2]
[420997122,1776883841192,-860.88784579,0.000161,2]
[420997123,1776883841201,-327.1291464,0.00016387,2]
[420997124,1776883841211,-325.2893202,0.00016387,2]
[420997125,1776883841220,-455.7675055,0.0001639,2]
[420997126,1776883841230,-151.0,0.0001639,2]
[420997127,1776883841239,-325.3724333,0.0001639,2]
[420997128,1776883841248,-325.3724333,0.0001639,2]
[420997129,1776883841257,-455.80029,0.0001639,2]
[420997130,1776883841267,-151.0,0.000164,2]
[420997132,1776883841275,-151.0,0.000164,2]
[420997134,1776883841283,-524.83,0.00016438,2]
[420997136,1776883841293,-271.39706997,0.00016626,7]
[420997138,1776883841303,-241.41973615,0.00016626,7]
[420997140,1776883841312,-657.094678,0.00016656,2]
[420997142,1776883841322,-151.0,0.000167,2]
[420997143,1776883841331,-512.30513911,0.00016707,2]
[420997144,1776883841341,-162.380719,0.00016707,2]
[420997146,1776883841350,-537.6845,0.00016707,2]
[420997148,1776883841360,-537.6845,0.00016707,2]
[420997150,1776883841369,-151.0,0.00016707,2]
[420997152,1776883841379,-151.0,0.00016707,2]
[420997154,1776883841388,-151.0,0.00016707,2]
[420997156,1776883841398,-151.0,0.00016707,2]
[420997157,1776883841407,-151.0,0.00016707,2]
[420997158,1776883841416,-151.0,0.00016707,2]
[420997159,1776883841426,-151.0,0.00016707,2]
[420997160,1776883841435,-151.0,0.00016707,2]
[420997161,1776883841444,-151.0,0.00016707,2]
[420997162,1776883841453,-151.0,0.00016707,2]
[420997163,1776883841463,-151.0,0.00016707,2]
[420997164,1776883841473,-151.0,0.00016707,2]
[420997165,1776883841482,-151.0,0.00016707,2]
[420997166,1776883841493,-151.0,0.00016707,2]
[420997167,1776883841503,-151.0,0.00016707,2]
[420997168,1776883841513,-151.0,0.00016707,2]
[420997169,1776883841522,-151.0,0.00016707,2]
[420997170,1776883841532,-151.0,0.00016707,2]
[420997171,1776883841541,-151.0,0.00016707,2]
[420997172,1776883841550,-151.94050489,0.00016707,2]
[420997173,1776883841560,-2150.738,0.00016707,2]
[420997174,1776883841569,-557.5788265,0.00016762,2]
[420997175,1776883841579,-151.0,0.000168,2]
[420997176,1776883841588,-578.20924308,0.00016817,2]
[420997177,1776883841598,-599.60298507,0.00016872,2]
[420997178,1776883841608,-621.78829552,0.00016927,2]
[420997179,1776883841617,-509.08,0.00016931,2]
[420997180,1776883841626,-644.79446246,0.00016982,2]
[420997181,1776883841636,-151.0,0.00017,2]
[420997182,1776883841645,-178.92765712,0.00017014,3]
[420997183,1776883841654,-668.65185757,0.00017037,2]
[420997184,1776883841663,-693.3919763,0.00017092,2]
[420997185,1776883841674,-322.17534397,0.00017099,2]
[420997186,1776883841683,-500.0,0.00017099,2]
[420997187,1776883841692,-500.0,0.00017099,2]
[420997188,1776883841702,-500.0,0.00017099,2]
[420997189,1776883841713,-500.0,0.00017099,2]
[420997190,1776883841722,-380.08034974,0.00017099,2]
[420997191,1776883841731,-500.0,0.00017099,2]
[420997192,1776883841740,-500.0,0.00017099,2]
[420997193,1776883841749,-500.0,0.00017099,2]
[420997194,1776883841758,-500.0,0.00017099,2]
[420997195,1776883841767,-475.3782465,0.00017099,2]
[420997196,1776883841777,-500.0,0.00017099,2]
[420997197,1776883841786,-500.0,0.00017099,2]
[420997198,1776883841796,-500.0,0.00017099,2]
[420997199,1776883841807,-500.0,0.00017099,2]
[420997200,1776883841816,-500.0,0.00017099,2]
[420997201,1776883841825,-500.0,0.00017099,2]
[420997202,1776883841834,-500.0,0.00017099,2]
[420997203,1776883841843,-500.0,0.00017099,2]
[420997204,1776883841853,-500.0,0.00017099,2]
[420997205,1776883841862,-500.0,0.00017099,2]
[420997206,1776883841872,-500.0,0.00017099,2]
[420997207,1776883841882,-151.0,0.000171,2]
[420997208,1776883841891,-160.0,0.00017111,2]
[420997209,1776883841900,-253.2544035,0.00017147,2]
[420997210,1776883841910,-2580.1362406,0.00017161,2]
[420997211,1776883841920,-455.7675055,0.00017212,2]
[420997212,1776883841929,-557.5788265,0.00017255,2]
[420997213,1776883841938,-2230.315306,0.00017255,2]
[420997214,1776883841948,-151.0,0.000173,2]
[420997215,1776883841957,-4806.1522132,0.00017304,2]
[420997216,1776883841966,-204.0,0.00017308,2]
[420997217,1776883841975,-657.094678,0.00017328,2]
[420997218,1776883841984,-720.0,0.0001739,2]
[420997219,1776883841995,-151.0,0.000174,2]
[420997220,1776883842004,-151.0,0.000176,2]
[420997221,1776883842013,-690.89371095,0.00017745,30]
[420997222,1776883842023,-151.0,0.000178,2]
[420997223,1776883842032,-151.0,0.000178,2]
[420997224,1776883842042,-578.20924308,0.00017803,2]
[420997225,1776883842051,-2312.83697232,0.00017803,2]
[420997226,1776883842061,-151.0,0.000179,2]
[420997227,1776883842070,-2000.0,0.00018,2]
[420997228,1776883842079,-151.0,0.00018,2]
[420997229,1776883842089,-657.094678,0.00018001,2]
[420997230,1776883842098,-160.0,0.00018032,2]
[420997231,1776883842108,-408.884245,0.00018032,2]
[420997232,1776883842117,-657.768491,0.00018032,2]
[420997233,1776883842127,-160.0,0.00018032,7]
[420997234,1776883842136,-163.559233,0.00018032,7]
[420997235,1776883842146,-167.118467,0.00018032,7]
[420997236,1776883842155,-170.80368,0.00018047,2]
[420997237,1776883842164,-203.04352,0.00018047,7]
[420997238,1776883842174,-163.62501956,0.00018076,2]
[420997239,1776883842183,-151.0,0.000181,2]
[420997240,1776883842193,-2000.0,0.000182,2]
[420997241,1776883842202,-151.0,0.000182,2]
[420997242,1776883842212,-393.0,0.000182,2]
[420997243,1776883842222,-220.176619,0.00018212,2]
[420997244,1776883842231,-732.885244,0.00018247,2]
[420997245,1776883842241,-529.58209054,0.0001828,14]
[420997246,1776883842250,-151.0,0.000183,2]
[420997247,1776883842259,-2700.73130205,0.00018303,14]
[420997248,1776883842268,-2524.67130843,0.00018303,14]
[420997249,1776883842278,-459.81867153,0.00018325,60]
[420997250,1776883842288,-385.63756807,0.00018351,2]
[420997251,1776883842297,-2398.4119403,0.00018351,2]
[420997252,1776883842307,-2524.67130843,0.00018359,14]
[420997253,1776883842319,-2700.73130205,0.00018359,14]
[420997254,1776883842328,-918.70966276,0.00018375,14]
[420997255,1776883842338,-691.152,0.00018377,2]
[420997256,1776883842347,-2209.0,0.00018377,2]
[420997257,1776883842357,-1409.0,0.00018377,2]
[420997258,1776883842367,-187.0,0.00018377,2]
[420997259,1776883842376,-441.0,0.00018377,2]
[420997260,1776883842386,-152.907,0.00018377,2]